[Event "FRA-chT Top 12"]
[Site "Drancy"]
[Date "2016.06.02"]
[Round "6.7"]
[White "Vuilleumier, Alexandre"]
[Black "Brunner, Nicolas"]
[Result "0-1"]
[ECO "B81"]
[WhiteElo "2384"]
[BlackElo "2442"]
[Annotator "RR"]
[PlyCount "92"]
[EventDate "2016.05.28"]
[EventType "team-tourn"]
[EventRounds "11"]
[EventCountry "FRA"]
[SourceTitle "CBM 172 Extra"]
[Source "ChessBase"]
[SourceDate "2016.06.21"]
[SourceVersion "1"]
[SourceVersionDate "2016.06.21"]
[SourceQuality "1"]
[WhiteTeam "Bois Colombes"]
[BlackTeam "Vandoeuvre"]
[WhiteTeamCountry "FRA"]
[BlackTeamCountry "FRA"]
[TimeControl "40/5400+30:1800+30"]

1. e4 {[%emt 0:00:30][%mdl 512]} c5 {[%emt 0:00:30] Prix de beauté de la
ronde 6} 2. Nf3 {[%emt 0:00:00]} d6 {[%emt 0:00:00]} 3. d4 {[%emt 0:00:00]}
cxd4 {[%emt 0:00:00]} 4. Nxd4 {[%emt 0:00:00]} Nf6 {[%emt 0:00:00]} 5. Nc3 {
[%emt 0:00:00]} a6 {[%emt 0:00:00]} 6. h3 {[%emt 0:00:30] La variante Fischer
est revenu à la mode depuis quelques années} e6 {[%emt 0:00:00]} 7. g4 {
[%emt 0:00:00]} Be7 {[%emt 0:00:00]} (7... d5 {La grande ligne}) 8. Be3 {
[%emt 0:01:00]} (8. Bg2 Nfd7 9. Be3 Nc6 10. Qe2 O-O 11. O-O-O Nxd4 12. Bxd4 Qc7
13. f4 b5 14. g5 b4 15. Na4 e5 16. Be3 exf4 17. Bxf4 Ne5 18. Qf2 Rb8 19. h4 Bg4
20. Rd2 Rfc8 21. b3 Qa5 22. Bh3 Be6 23. h5 Nc4 24. Re2 Bxg5 25. bxc4 Bxc4 26.
Bxg5 Qxg5+ 27. Re3 Bd3 28. Qg3 Rxc2+ 29. Kd1 Qxh5+ 30. Qg4 Qe5 31. Rxd3 Rxa2
32. Rd2 Qa1+ 33. Ke2 Rxd2+ 34. Kxd2 Qxh1 35. Nb2 Qh2+ 36. Bg2 h5 37. Qg5 Qe5 {
Caruana,F (2795)-Kasparov,G (2812) Saint Louis 2016 0-1}) 8... b5 {[%emt 0:07:
30]} (8... Nfd7) 9. g5 {[%emt 0:00:30]} Nfd7 {[%emt 0:00:00]} 10. Qd2 {[%emt 0:
00:30]} Bb7 {[%emt 0:01:00]} 11. a3 {[%emt 0:04:30] Les Blancs peuvent
difficilement se passer de coup de protection mais c'est un sérieux
affaiblissement de l'aile-dame} Nc6 {[%emt 0:00:30]} (11... Nb6 {[%cal Gb6c4]}
12. O-O-O N8d7 13. h4 Rc8 $132 {Hracek,Z (2631)-Zhigalko,A (2572) EU-ch 16th
Jerusalem 2015 (6) 0-1}) 12. O-O-O {[%emt 0:04:30]} Rc8 $146 {[%emt 0:02:30]
Le K Noir est moins exposé au centre qu'à l'ail-roi} (12... Nxd4 13. Qxd4 O-O
14. h4 Rc8 15. Kb1 Ne5 16. f4 Nc4 17. Rh3 Qc7 18. Bc1 Rfd8 19. h5 d5 20. h6 e5
21. Qf2 d4 22. Bxc4 Qxc4 23. b3 Qc5 24. Rhd3 exf4 25. Bxf4 g6 26. Nd5 Bxd5 27.
Rxd4 Rd7 28. exd5 Rxd5 29. Be3 Rxd4 30. Rxd4 Qc6 31. Qd2 a5 32. Rd5 Bxa3 33.
Rd8+ Rxd8 34. Qxd8+ Bf8 35. Qxa5 {1/2-1/2 (35) Cuccumini,V (2157)-Petrigin,M 
(2109) ICCF email 2013}) 13. Nxc6 $6 {[%emt 0:06:30]} (13. h4 O-O 14. h5 (14.
f4 Qc7 15. h5 Nb6 16. g6 $36) 14... Nxd4 15. Bxd4 Bxg5 16. f4 Bh6 17. Rg1 $44)
13... Rxc6 {[%emt 0:01:30]} 14. f4 {[%emt 0:04:30]} O-O {[%emt 0:08:30]} 15.
Rg1 $6 {[%emt 0:03:30] Semble trop lent} (15. h4 Nb6 16. h5 Nc4 17. Bxc4 Rxc4
18. g6 $13) 15... Qa5 {[%emt 0:04:30]} 16. Kb1 {[%emt 0:10:30]} (16. Bd4) 16...
Rxc3 $1 {[%emt 0:05:30] Classique mais très efficace} 17. Qxc3 {[%emt 0:00:30]
} Qxc3 {[%emt 0:00:00]} 18. bxc3 {[%emt 0:00:00]} Bxe4 $44 {[%emt 0:00:00]
[%csl Ge4,Ge7]} 19. Bd3 {[%emt 0:11:00]} Bd5 {[%emt 0:08:30]} 20. f5 {[%emt 0:
14:30]} Rc8 {[%emt 0:04:30]} 21. fxe6 {[%emt 0:00:30]} fxe6 {[%emt 0:01:30]}
22. g6 {[%emt 0:13:30]} h6 {[%emt 0:07:30]} 23. Bf5 {[%emt 0:11:41]} Bc4 $17 {
[%emt 0:05:30]} 24. Bg4 {[%emt 0:03:46]} Ne5 {[%emt 0:03:30][%csl Ge5] Les
pièces Noires sont placées sur des cases optimales} 25. Bf4 {[%emt 0:01:10]}
Nxg4 {[%emt 0:03:30]} 26. hxg4 {[%emt 0:00:24]} e5 $36 {[%emt 0:00:30][%csl
Ge5]} 27. Bc1 {[%emt 0:02:22]} d5 {[%emt 0:07:30][%csl Gd5,Ge5][%cal Ge7f6]}
28. g5 {[%emt 0:04:11]} hxg5 {[%emt 0:03:30]} 29. Bxg5 {[%emt 0:00:36]} Bxa3 {
[%emt 0:00:00]} 30. Rde1 {[%emt 0:00:35]} Bd6 {[%emt 0:04:00]} (30... e4) 31.
Bh4 {[%emt 0:01:16]} a5 {[%emt 0:01:30]} 32. Rg5 {[%emt 0:00:24]} e4 {[%emt 0:
03:35]} 33. Bg3 {[%emt 0:01:03]} Bxg3 {[%emt 0:01:29]} 34. Rxg3 {[%emt 0:00:03]
} Rc6 {[%emt 0:00:57]} 35. Kb2 {[%emt 0:00:44]} Re6 {[%emt 0:01:18]} 36. Ra1 {
[%emt 0:01:24]} a4 {[%emt 0:00:06]} 37. Re1 $2 $138 {[%emt 0:00:06]} (37. Rh1
$1 {Empêche indirectement Kf8} Kf8 38. Rh8+ Ke7 39. Rg8 Kf6 40. Rf8+) 37...
Kf8 $19 {[%emt 0:01:06] Après la centralisation du K Noir, le gain technique
n'est pas trop difficile.} 38. Ree3 {[%emt 0:00:10]} Ke7 {[%emt 0:00:17]} 39.
Rg2 {[%emt 0:01:12]} Kf6 {[%emt 0:04:46]} 40. Ka3 {[%emt 0:00:33]} Kf5 {
[%emt 0:00:00]} 41. Reg3 {[%emt 0:05:50]} e3 {[%emt 0:22:26]} 42. Rf3+ {
[%emt 0:00:30]} Ke4 {[%emt 0:00:00]} 43. Rgg3 {[%emt 0:00:30]} d4 {[%emt 0:01:
00]} 44. cxd4 {[%emt 0:00:30]} Kxd4 {[%emt 0:00:30]} 45. Kb4 {[%emt 0:00:30]}
e2 {[%emt 0:02:20]} 46. c3+ {[%emt 0:03:30]} Ke5 {[%emt 0:00:40]} 0-1